[Event "Late-Titled-Tuesday-Blitz-December-26-2023"]
[Site "Chess.com"]
[Date "2023.12.26"]
[Round "5"]
[White "Jospem"]
[Black "BlackGod93"]
[Result "1-0"]
[WhiteElo "3065"]
[BlackElo "2587"]
[TimeControl "180+1"]
[EndTime "14:52:10 PST"]
[Termination "Jospem won by resignation"]

1. e4 {[%clk 0:03:00.9]} 1... e5 {[%clk 0:02:59.2]} 2. Nf3 {[%clk 0:03:01.2]}
2... Nc6 {[%clk 0:02:59.9]} 3. Nc3 {[%clk 0:03:02]} 3... Nf6 {[%clk 0:02:59.7]}
4. h3 {[%clk 0:03:02.8]} 4... Bb4 {[%clk 0:02:59.4]} 5. a3 {[%clk 0:03:03]} 5...
Bxc3 {[%clk 0:02:59.6]} 6. dxc3 {[%clk 0:03:03.9]} 6... Nxe4 {[%clk 0:03:00.1]}
7. Nxe5 {[%clk 0:03:04.4]} 7... Nxe5 {[%clk 0:02:55.9]} 8. Qd4 {[%clk
0:03:04.2]} 8... O-O {[%clk 0:02:56.5]} 9. Qxe4 {[%clk 0:03:04.7]} 9... Re8
{[%clk 0:02:56.8]} 10. Be3 {[%clk 0:03:04.7]} 10... d5 {[%clk 0:02:56.8]} 11.
Qf4 {[%clk 0:03:04.9]} 11... Ng6 {[%clk 0:02:15]} 12. Qd4 {[%clk 0:03:04]} 12...
c6 {[%clk 0:02:00.2]} 13. O-O-O {[%clk 0:03:03.5]} 13... Qh4 {[%clk 0:01:57.4]}
14. Qd2 {[%clk 0:02:51.8]} 14... Bg4 {[%clk 0:01:53.5]} 15. Bg5 {[%clk
0:02:44.8]} 15... Qh5 {[%clk 0:01:53.2]} 16. f3 {[%clk 0:02:45.1]} 16... Re5
{[%clk 0:01:35.6]} 17. h4 {[%clk 0:02:28.4]} 17... Bxf3 {[%clk 0:01:07.1]} 18.
gxf3 {[%clk 0:02:26.3]} 18... Qxf3 {[%clk 0:01:08]} 19. Bd3 {[%clk 0:02:14]}
19... h6 {[%clk 0:01:01]} 20. Rdf1 {[%clk 0:02:13.7]} 20... Qg3 {[%clk
0:00:57.9]} 21. Bxg6 {[%clk 0:02:09.8]} 21... hxg5 {[%clk 0:00:49.4]} 22. Bxf7+
{[%clk 0:02:09.6]} 22... Kf8 {[%clk 0:00:50.3]} 23. Bxd5+ {[%clk 0:02:08.8]}
23... Ke7 {[%clk 0:00:50.3]} 24. Bc4 {[%clk 0:02:03.7]} 24... Rd8 {[%clk
0:00:50.3]} 25. Rf7+ {[%clk 0:02:03.5]} 25... Ke8 {[%clk 0:00:50.1]} 26. Rf8+
{[%clk 0:02:04]} 26... Kxf8 {[%clk 0:00:49.4]} 27. Qxd8+ {[%clk 0:02:04.7]}
27... Re8 {[%clk 0:00:50]} 28. Rf1+ {[%clk 0:02:04.2]} 1-0

[Event "Late-Titled-Tuesday-Blitz-December-26-2023"]
[Site "Chess.com"]
[Date "2023.12.26"]
[Round "5"]
[White "RebecaJimnz"]
[Black "The_Straightforward_Rook"]
[Result "1-0"]
[WhiteElo "2265"]
[BlackElo "2427"]
[TimeControl "180+1"]
[EndTime "14:52:29 PST"]
[Termination "RebecaJimnz won by resignation"]

1. e4 {[%clk 0:02:58]} 1... c6 {[%clk 0:03:00.1]} 2. d4 {[%clk 0:02:56.3]} 2...
d5 {[%clk 0:03:01]} 3. exd5 {[%clk 0:02:56.5]} 3... cxd5 {[%clk 0:03:01.9]} 4.
Bd3 {[%clk 0:02:54.7]} 4... Nc6 {[%clk 0:03:01]} 5. c3 {[%clk 0:02:54.3]} 5...
g6 {[%clk 0:03:00.9]} 6. Nf3 {[%clk 0:02:52.8]} 6... Bg7 {[%clk 0:03:00.6]} 7.
O-O {[%clk 0:02:50.5]} 7... Nf6 {[%clk 0:02:56.3]} 8. Re1 {[%clk 0:02:50.4]}
8... Bf5 {[%clk 0:02:55.3]} 9. Bf4 {[%clk 0:02:19.5]} 9... Bxd3 {[%clk 0:02:41]}
10. Qxd3 {[%clk 0:02:19.4]} 10... O-O {[%clk 0:02:40.7]} 11. Nbd2 {[%clk
0:02:11.9]} 11... Qb6 {[%clk 0:02:34.7]} 12. Nb3 {[%clk 0:02:06.5]} 12... Rac8
{[%clk 0:02:30.9]} 13. Rad1 {[%clk 0:01:49.2]} 13... Ne4 {[%clk 0:02:30.6]} 14.
Qe3 {[%clk 0:01:41.7]} 14... a5 {[%clk 0:02:25.5]} 15. Bh6 {[%clk 0:01:28.8]}
15... a4 {[%clk 0:02:18.7]} 16. Bxg7 {[%clk 0:01:28.6]} 16... Kxg7 {[%clk
0:02:18.7]} 17. Nc5 {[%clk 0:00:56.3]} 17... Nxc5 {[%clk 0:02:19]} 18. dxc5
{[%clk 0:00:57]} 18... Qxb2 {[%clk 0:02:19.7]} 19. Rb1 {[%clk 0:00:55.2]} 19...
Qxa2 {[%clk 0:02:20.4]} 20. Rxb7 {[%clk 0:00:55.1]} 20... Rb8 {[%clk 0:01:41.3]}
21. Rxb8 {[%clk 0:00:51.5]} 21... Rxb8 {[%clk 0:01:41]} 22. Nd4 {[%clk
0:00:50.1]} 22... Nxd4 {[%clk 0:01:32.2]} 23. Qe5+ {[%clk 0:00:48.4]} 23... Kg8
{[%clk 0:01:30.2]} 24. Qxb8+ {[%clk 0:00:48.5]} 24... Kg7 {[%clk 0:01:30.7]} 25.
cxd4 {[%clk 0:00:48]} 1-0

[Event "Late-Titled-Tuesday-Blitz-December-26-2023"]
[Site "Chess.com"]
[Date "2023.12.26"]
[Round "5"]
[White "AlexanderL"]
[Black "Kleyton_Lima"]
[Result "1-0"]
[WhiteElo "2885"]
[BlackElo "2573"]
[TimeControl "180+1"]
[EndTime "14:52:30 PST"]
[Termination "AlexanderL won by resignation"]

1. d4 {[%clk 0:03:00.9]} 1... Nf6 {[%clk 0:02:57.8]} 2. Nf3 {[%clk 0:02:57.4]}
2... g6 {[%clk 0:02:57.8]} 3. e3 {[%clk 0:02:53.5]} 3... Bg7 {[%clk 0:02:58.1]}
4. b4 {[%clk 0:02:53.8]} 4... O-O {[%clk 0:02:54.8]} 5. Bb2 {[%clk 0:02:53.6]}
5... d5 {[%clk 0:02:54.7]} 6. Be2 {[%clk 0:02:52.6]} 6... a5 {[%clk 0:02:54.8]}
7. b5 {[%clk 0:02:52.1]} 7... c6 {[%clk 0:02:55.1]} 8. a4 {[%clk 0:02:49.7]}
8... Bg4 {[%clk 0:02:53.2]} 9. Nbd2 {[%clk 0:02:47.1]} 9... Nbd7 {[%clk
0:02:53.4]} 10. O-O {[%clk 0:02:45.5]} 10... Re8 {[%clk 0:02:53.4]} 11. h3
{[%clk 0:02:45]} 11... Bxf3 {[%clk 0:02:53.2]} 12. Nxf3 {[%clk 0:02:45.9]} 12...
Ne4 {[%clk 0:02:51.5]} 13. c4 {[%clk 0:02:45.6]} 13... dxc4 {[%clk 0:02:42.6]}
14. Bxc4 {[%clk 0:02:46.5]} 14... Nb6 {[%clk 0:02:41.5]} 15. Bd3 {[%clk
0:02:44.5]} 15... Nd6 {[%clk 0:02:35.5]} 16. bxc6 {[%clk 0:02:44.7]} 16... bxc6
{[%clk 0:02:36.4]} 17. Rc1 {[%clk 0:02:44.3]} 17... Nd5 {[%clk 0:02:34.1]} 18.
Rxc6 {[%clk 0:02:41]} 18... Nb4 {[%clk 0:02:29.5]} 19. Rc1 {[%clk 0:02:40]}
19... Nxd3 {[%clk 0:02:29]} 20. Qxd3 {[%clk 0:02:40.9]} 20... Rb8 {[%clk
0:02:27.3]} 21. Ba3 {[%clk 0:02:40.3]} 21... Qd7 {[%clk 0:02:27.1]} 22. Bxd6
{[%clk 0:02:39.6]} 22... Qxd6 {[%clk 0:02:23.8]} 23. Rc5 {[%clk 0:02:32.7]}
23... Qb6 {[%clk 0:02:03.7]} 24. Qc3 {[%clk 0:02:30.6]} 24... Qb4 {[%clk
0:01:57.4]} 25. Qc2 {[%clk 0:02:30.8]} 25... h5 {[%clk 0:01:48.3]} 26. Rc1
{[%clk 0:02:30.3]} 26... e6 {[%clk 0:01:44.6]} 27. Ne1 {[%clk 0:02:29.6]} 27...
Bf6 {[%clk 0:01:33.1]} 28. Nd3 {[%clk 0:02:29.7]} 28... Qb6 {[%clk 0:01:33]} 29.
Rb5 {[%clk 0:02:27.5]} 29... Qd8 {[%clk 0:01:29.4]} 30. Qb3 {[%clk 0:02:25.6]}
30... Be7 {[%clk 0:01:24.5]} 31. Ne5 {[%clk 0:02:24.8]} 31... Rxb5 {[%clk
0:01:12.6]} 32. Qxb5 {[%clk 0:02:25.7]} 32... Bb4 {[%clk 0:01:10.9]} 33. Nc6
{[%clk 0:02:23]} 33... Qc7 {[%clk 0:00:56.5]} 34. Rc4 {[%clk 0:02:22.2]} 34...
Qd6 {[%clk 0:00:29.3]} 35. Nxb4 {[%clk 0:02:13.7]} 35... Rb8 {[%clk 0:00:29.9]}
36. Qxa5 {[%clk 0:02:14]} 1-0

[Event "Late-Titled-Tuesday-Blitz-December-26-2023"]
[Site "Chess.com"]
[Date "2023.12.26"]
[Round "5"]
[White "SCIM"]
[Black "Slovafn"]
[Result "1-0"]
[WhiteElo "2512"]
[BlackElo "2326"]
[TimeControl "180+1"]
[EndTime "14:52:57 PST"]
[Termination "SCIM won by resignation"]

1. d4 {[%clk 0:03:00.9]} 1... Nf6 {[%clk 0:02:56.7]} 2. Nf3 {[%clk 0:03:01.2]}
2... g6 {[%clk 0:02:56.9]} 3. g3 {[%clk 0:03:01]} 3... Bg7 {[%clk 0:02:57.3]} 4.
Bg2 {[%clk 0:03:01.6]} 4... O-O {[%clk 0:02:58]} 5. O-O {[%clk 0:03:01.9]} 5...
d5 {[%clk 0:02:58.3]} 6. c4 {[%clk 0:03:01.9]} 6... c6 {[%clk 0:02:52.2]} 7. b3
{[%clk 0:02:58.2]} 7... a5 {[%clk 0:02:49.2]} 8. Nbd2 {[%clk 0:02:57.4]} 8... a4
{[%clk 0:02:49.2]} 9. Bb2 {[%clk 0:02:57.5]} 9... Bf5 {[%clk 0:02:46.4]} 10. Nh4
{[%clk 0:02:52.8]} 10... Be6 {[%clk 0:02:45.9]} 11. Nhf3 {[%clk 0:02:51.8]}
11... Ne4 {[%clk 0:02:41.9]} 12. Nxe4 {[%clk 0:02:47.6]} 12... dxe4 {[%clk
0:02:41.9]} 13. Ng5 {[%clk 0:02:47.9]} 13... Bf5 {[%clk 0:02:24.1]} 14. Nxe4
{[%clk 0:02:45.9]} 14... Nd7 {[%clk 0:01:54.5]} 15. e3 {[%clk 0:02:42.4]} 15...
axb3 {[%clk 0:01:38.3]} 16. axb3 {[%clk 0:02:40.9]} 16... Rxa1 {[%clk
0:01:37.9]} 17. Qxa1 {[%clk 0:02:38.5]} 17... Qb6 {[%clk 0:01:37.2]} 18. Nd2
{[%clk 0:02:32]} 18... Bd3 {[%clk 0:01:26.7]} 19. Rc1 {[%clk 0:02:28.6]} 19...
c5 {[%clk 0:01:23.1]} 20. dxc5 {[%clk 0:02:19.2]} 20... Bxb2 {[%clk 0:01:21.7]}
21. cxb6 {[%clk 0:02:18.8]} 21... Bxa1 {[%clk 0:01:21.7]} 22. Rxa1 {[%clk
0:02:19.4]} 22... Nxb6 {[%clk 0:01:21.9]} 23. Bxb7 {[%clk 0:02:17.6]} 23... Rb8
{[%clk 0:01:20.6]} 24. Bf3 {[%clk 0:02:11.5]} 24... Nd7 {[%clk 0:01:20.4]} 25.
Ra8 {[%clk 0:02:08.1]} 25... Rxa8 {[%clk 0:01:18.8]} 26. Bxa8 {[%clk 0:02:07.4]}
26... e5 {[%clk 0:01:13.1]} 27. Be4 {[%clk 0:02:04]} 27... Be2 {[%clk
0:01:11.4]} 28. f4 {[%clk 0:02:00.6]} 28... exf4 {[%clk 0:01:04.5]} 29. exf4
{[%clk 0:01:54.3]} 29... Nc5 {[%clk 0:01:04.5]} 30. Kf2 {[%clk 0:01:47.8]} 30...
Bd1 {[%clk 0:01:00.2]} 31. b4 {[%clk 0:01:46.7]} 31... Na6 {[%clk 0:00:52.1]}
32. b5 {[%clk 0:01:44.8]} 32... Nc5 {[%clk 0:00:52.8]} 33. b6 {[%clk 0:01:39.8]}
33... f5 {[%clk 0:00:45.7]} 34. b7 {[%clk 0:01:34.8]} 34... fxe4 {[%clk
0:00:40.8]} 35. b8=Q+ {[%clk 0:01:33.1]} 1-0

[Event "Late-Titled-Tuesday-Blitz-December-26-2023"]
[Site "Chess.com"]
[Date "2023.12.26"]
[Round "5"]
[White "alertakobra"]
[Black "grandemestregringo"]
[Result "0-1"]
[WhiteElo "2444"]
[BlackElo "2660"]
[TimeControl "180+1"]
[EndTime "14:53:08 PST"]
[Termination "grandemestregringo won by resignation"]

1. e4 {[%clk 0:03:00.9]} 1... e5 {[%clk 0:03:00]} 2. Nf3 {[%clk 0:03:00.2]} 2...
Nc6 {[%clk 0:03:00.6]} 3. d4 {[%clk 0:03:00.3]} 3... exd4 {[%clk 0:03:00.5]} 4.
Nxd4 {[%clk 0:03:01.2]} 4... Nf6 {[%clk 0:03:01.2]} 5. Nxc6 {[%clk 0:03:00]}
5... bxc6 {[%clk 0:03:02.1]} 6. e5 {[%clk 0:03:00.5]} 6... Qe7 {[%clk
0:03:02.7]} 7. Qe2 {[%clk 0:03:00.7]} 7... Nd5 {[%clk 0:03:02.8]} 8. h4 {[%clk
0:03:01.1]} 8... g6 {[%clk 0:03:00.4]} 9. Bg5 {[%clk 0:02:40.2]} 9... Qe6 {[%clk
0:03:00.6]} 10. c4 {[%clk 0:02:37.4]} 10... Nb6 {[%clk 0:02:45.9]} 11. Bf6
{[%clk 0:02:25.1]} 11... Bb4+ {[%clk 0:02:45.9]} 12. Nc3 {[%clk 0:02:05.7]}
12... O-O {[%clk 0:02:34.8]} 13. h5 {[%clk 0:01:58.3]} 13... Na4 {[%clk
0:02:32.1]} 14. Rc1 {[%clk 0:01:22.2]} 14... Ba6 {[%clk 0:02:25.5]} 15. Qe4
{[%clk 0:01:11.6]} 15... Rfe8 {[%clk 0:02:15.9]} 16. Bd3 {[%clk 0:01:04.6]}
16... Nc5 {[%clk 0:02:06.6]} 17. hxg6 {[%clk 0:00:52.2]} 17... Nxd3+ {[%clk
0:02:05.1]} 18. Kd2 {[%clk 0:00:45.5]} 18... Qxf6 {[%clk 0:01:48.6]} 19. gxh7+
{[%clk 0:00:41]} 19... Kh8 {[%clk 0:01:48.7]} 20. exf6 {[%clk 0:00:19.3]} 20...
Rxe4 {[%clk 0:01:47.2]} 21. Kxd3 {[%clk 0:00:19.7]} 21... Rxc4 {[%clk
0:01:46.4]} 22. Kc2 {[%clk 0:00:19.2]} 22... Rf4 {[%clk 0:01:42.4]} 23. f3
{[%clk 0:00:18.9]} 23... Bxc3 {[%clk 0:01:41.1]} 24. bxc3 {[%clk 0:00:18.5]}
24... Rxf6 {[%clk 0:01:42]} 25. Rce1 {[%clk 0:00:18]} 25... Bc4 {[%clk
0:01:39.9]} 26. Re4 {[%clk 0:00:15.8]} 26... Bd5 {[%clk 0:01:36.7]} 27. Rg4
{[%clk 0:00:15.7]} 27... Rg6 {[%clk 0:01:36.4]} 0-1

[Event "Late-Titled-Tuesday-Blitz-December-26-2023"]
[Site "Chess.com"]
[Date "2023.12.26"]
[Round "5"]
[White "Viktor_Poddubnyi"]
[Black "OneTrickPony_82"]
[Result "0-1"]
[WhiteElo "2288"]
[BlackElo "2488"]
[TimeControl "180+1"]
[EndTime "14:53:15 PST"]
[Termination "OneTrickPony_82 won by resignation"]

1. e4 {[%clk 0:03:00.9]} 1... e5 {[%clk 0:02:59.9]} 2. f4 {[%clk 0:02:58.2]}
2... d5 {[%clk 0:02:59]} 3. exd5 {[%clk 0:02:57.8]} 3... exf4 {[%clk 0:02:59.2]}
4. Nf3 {[%clk 0:02:56.3]} 4... Nf6 {[%clk 0:02:58.8]} 5. c4 {[%clk 0:02:55.2]}
5... c6 {[%clk 0:02:58.4]} 6. d4 {[%clk 0:02:55.5]} 6... cxd5 {[%clk 0:02:53.9]}
7. Bxf4 {[%clk 0:02:56]} 7... Bb4+ {[%clk 0:02:53.7]} 8. Nc3 {[%clk 0:02:56.4]}
8... Nc6 {[%clk 0:02:53.5]} 9. Be2 {[%clk 0:02:55.8]} 9... Ne4 {[%clk
0:02:43.1]} 10. Qb3 {[%clk 0:02:02.8]} 10... dxc4 {[%clk 0:02:13]} 11. Bxc4
{[%clk 0:01:55]} 11... O-O {[%clk 0:02:12.7]} 12. O-O {[%clk 0:01:46.7]} 12...
Bxc3 {[%clk 0:01:52.4]} 13. bxc3 {[%clk 0:01:39.9]} 13... Na5 {[%clk 0:01:50.4]}
14. Qc2 {[%clk 0:01:21.1]} 14... Nxc4 {[%clk 0:01:42.1]} 15. Qxe4 {[%clk
0:01:21.1]} 15... Re8 {[%clk 0:01:31.9]} 16. Qd3 {[%clk 0:01:14]} 16... Qd5
{[%clk 0:01:20.8]} 17. Ne5 {[%clk 0:01:00.4]} 17... Nxe5 {[%clk 0:01:16.7]} 18.
Bxe5 {[%clk 0:00:58.6]} 18... Rxe5 {[%clk 0:01:17.1]} 19. c4 {[%clk 0:00:27.6]}
19... Qe4 {[%clk 0:01:14.6]} 0-1

[Event "Late-Titled-Tuesday-Blitz-December-26-2023"]
[Site "Chess.com"]
[Date "2023.12.26"]
[Round "5"]
[White "Balla_Tamas"]
[Black "shaya01"]
[Result "1-0"]
[WhiteElo "2432"]
[BlackElo "2220"]
[TimeControl "180+1"]
[EndTime "14:53:22 PST"]
[Termination "Balla_Tamas won by checkmate"]

1. e4 {[%clk 0:03:00.9]} 1... c6 {[%clk 0:02:51.9]} 2. d4 {[%clk 0:03:00.5]}
2... d5 {[%clk 0:02:52]} 3. e5 {[%clk 0:03:01.1]} 3... Bf5 {[%clk 0:02:48.7]} 4.
h4 {[%clk 0:03:00.4]} 4... e6 {[%clk 0:02:47.1]} 5. Bd3 {[%clk 0:02:59.2]} 5...
Bxd3 {[%clk 0:02:39.7]} 6. Qxd3 {[%clk 0:03:00.1]} 6... Ne7 {[%clk 0:02:34.5]}
7. Nf3 {[%clk 0:02:33.6]} 7... Nd7 {[%clk 0:02:25.8]} 8. c4 {[%clk 0:02:31]}
8... c5 {[%clk 0:02:24.2]} 9. Nc3 {[%clk 0:02:28.9]} 9... dxc4 {[%clk
0:02:13.9]} 10. Qxc4 {[%clk 0:02:26.3]} 10... Rc8 {[%clk 0:02:05.5]} 11. d5
{[%clk 0:02:18.6]} 11... Nxd5 {[%clk 0:01:50.4]} 12. Nxd5 {[%clk 0:02:17]} 12...
exd5 {[%clk 0:01:50.2]} 13. Qxd5 {[%clk 0:02:16.8]} 13... Qc7 {[%clk 0:01:27.6]}
14. e6 {[%clk 0:02:03.7]} 14... fxe6 {[%clk 0:01:22.7]} 15. Qxe6+ {[%clk
0:02:01.8]} 15... Be7 {[%clk 0:01:23]} 16. Bg5 {[%clk 0:01:59.7]} 16... Qd6
{[%clk 0:01:12.3]} 17. Qxd6 {[%clk 0:01:44.4]} 17... Bxd6 {[%clk 0:01:11.9]} 18.
O-O-O {[%clk 0:01:45]} 18... Rc6 {[%clk 0:01:01.9]} 19. Rhe1+ {[%clk 0:01:41.8]}
19... Kf7 {[%clk 0:01:00.6]} 20. Be7 {[%clk 0:01:17]} 20... Bf4+ {[%clk
0:00:55.4]} 21. Kb1 {[%clk 0:01:15]} 21... Nb6 {[%clk 0:00:45.4]} 22. g3 {[%clk
0:01:13.8]} 22... Bc7 {[%clk 0:00:42.4]} 23. Ng5+ {[%clk 0:01:05.9]} 23... Kg6
{[%clk 0:00:42.1]} 24. g4 {[%clk 0:00:45.5]} 24... h6 {[%clk 0:00:39.3]} 25. h5#
{[%clk 0:00:42.5]} 1-0

[Event "Late-Titled-Tuesday-Blitz-December-26-2023"]
[Site "Chess.com"]
[Date "2023.12.26"]
[Round "5"]
[White "ahkashefi2800"]
[Black "DuleMudule"]
[Result "0-1"]
[WhiteElo "2614"]
[BlackElo "2916"]
[TimeControl "180+1"]
[EndTime "14:53:26 PST"]
[Termination "DuleMudule won on time"]

1. d4 {[%clk 0:02:56.7]} 1... d5 {[%clk 0:02:59.6]} 2. c4 {[%clk 0:02:45.7]}
2... Bf5 {[%clk 0:02:57.7]} 3. cxd5 {[%clk 0:02:41]} 3... Bxb1 {[%clk
0:02:57.3]} 4. Rxb1 {[%clk 0:02:41.1]} 4... Qxd5 {[%clk 0:02:57.3]} 5. Qa4+
{[%clk 0:02:19.8]} 5... Nc6 {[%clk 0:02:57.1]} 6. e3 {[%clk 0:02:20.1]} 6... e5
{[%clk 0:02:56.7]} 7. Nf3 {[%clk 0:02:15.6]} 7... Bb4+ {[%clk 0:02:55.1]} 8. Bd2
{[%clk 0:02:11.3]} 8... Bxd2+ {[%clk 0:02:55]} 9. Nxd2 {[%clk 0:02:11.6]} 9...
exd4 {[%clk 0:02:54.7]} 10. Bc4 {[%clk 0:02:11.5]} 10... Qxg2 {[%clk 0:02:52.9]}
11. Rf1 {[%clk 0:02:00.3]} 11... dxe3 {[%clk 0:02:40.7]} 12. fxe3 {[%clk
0:01:59.1]} 12... O-O-O {[%clk 0:02:41.2]} 13. Rd1 {[%clk 0:01:36.1]} 13... Nf6
{[%clk 0:02:30]} 14. Rf2 {[%clk 0:01:19.8]} 14... Qh3 {[%clk 0:02:24.3]} 15. Nf1
{[%clk 0:01:01.6]} 15... Ng4 {[%clk 0:02:14.8]} 16. Rfd2 {[%clk 0:00:48.3]}
16... Rxd2 {[%clk 0:02:01.2]} 17. Rxd2 {[%clk 0:00:48.2]} 17... Nxe3 {[%clk
0:02:00.4]} 18. Be2 {[%clk 0:00:30.4]} 18... Re8 {[%clk 0:01:51.4]} 19. Kf2
{[%clk 0:00:08.1]} 19... f5 {[%clk 0:01:48.6]} 20. Qf4 {[%clk 0:00:01.8]} 20...
Qg2+ {[%clk 0:01:32]} 21. Ke1 {[%clk 0:00:01.9]} 21... Nxf1 {[%clk 0:01:32]} 22.
Qxf5+ {[%clk 0:00:01.6]} 22... Kb8 {[%clk 0:01:31.3]} 23. Qxf1 {[%clk 0:00:02]}
23... Qxh2 {[%clk 0:01:30.7]} 24. Kd1 {[%clk 0:00:01.9]} 24... Qe5 {[%clk
0:01:30.9]} 25. Kc1 {[%clk 0:00:01.9]} 25... a6 {[%clk 0:01:31.4]} 26. Rc2
{[%clk 0:00:02.3]} 26... Nd4 {[%clk 0:01:30.8]} 0-1

[Event "Late-Titled-Tuesday-Blitz-December-26-2023"]
[Site "Chess.com"]
[Date "2023.12.26"]
[Round "5"]
[White "Veleamater"]
[Black "Championnn-9"]
[Result "0-1"]
[WhiteElo "2357"]
[BlackElo "2516"]
[TimeControl "180+1"]
[EndTime "14:53:51 PST"]
[Termination "Championnn-9 won by resignation"]

1. g3 {[%clk 0:03:00.9]} 1... Nf6 {[%clk 0:02:59.1]} 2. Bg2 {[%clk 0:03:00.3]}
2... d5 {[%clk 0:02:59.4]} 3. d3 {[%clk 0:02:59.6]} 3... Nc6 {[%clk 0:02:51.7]}
4. Nf3 {[%clk 0:02:59.1]} 4... e5 {[%clk 0:02:51.7]} 5. O-O {[%clk 0:02:59.2]}
5... Be7 {[%clk 0:02:51.2]} 6. h3 {[%clk 0:02:59.8]} 6... O-O {[%clk 0:02:50]}
7. Nc3 {[%clk 0:03:00.4]} 7... h6 {[%clk 0:02:48.1]} 8. e4 {[%clk 0:02:59.3]}
8... Be6 {[%clk 0:02:45.5]} 9. Nd2 {[%clk 0:02:58.6]} 9... dxe4 {[%clk 0:02:42]}
10. dxe4 {[%clk 0:02:52.2]} 10... Nd4 {[%clk 0:02:40.4]} 11. Nb3 {[%clk
0:02:51.7]} 11... c5 {[%clk 0:02:33.1]} 12. Be3 {[%clk 0:02:51.4]} 12... Qd7
{[%clk 0:02:26.8]} 13. Kh2 {[%clk 0:02:50.9]} 13... Rfd8 {[%clk 0:02:26.8]} 14.
f4 {[%clk 0:02:49.4]} 14... Bg4 {[%clk 0:02:22.6]} 15. Qc1 {[%clk 0:02:42]}
15... exf4 {[%clk 0:02:16.2]} 16. gxf4 {[%clk 0:02:41.7]} 16... Ne2 {[%clk
0:02:06.5]} 17. Nxe2 {[%clk 0:02:40.2]} 17... Bxe2 {[%clk 0:02:06.3]} 18. Rg1
{[%clk 0:02:36.7]} 18... Nh5 {[%clk 0:01:56.8]} 19. Bxc5 {[%clk 0:02:08]} 19...
Bh4 {[%clk 0:01:53.9]} 20. f5 {[%clk 0:01:56.8]} 20... Bg3+ {[%clk 0:01:50.2]}
21. Kh1 {[%clk 0:01:56.4]} 21... Bf4 {[%clk 0:01:46.7]} 22. Qe1 {[%clk
0:01:45.1]} 22... Ng3+ {[%clk 0:01:46.6]} 23. Kh2 {[%clk 0:01:45.2]} 23... Nxe4+
{[%clk 0:01:47.2]} 24. Kh1 {[%clk 0:01:45.1]} 24... Ng3+ {[%clk 0:01:47.9]} 25.
Kh2 {[%clk 0:01:44.6]} 25... Nxf5+ {[%clk 0:01:48.5]} 26. Kh1 {[%clk 0:01:43.6]}
26... Ng3+ {[%clk 0:01:46.1]} 27. Kh2 {[%clk 0:01:43.7]} 27... Nf1+ {[%clk
0:01:37.2]} 28. Kh1 {[%clk 0:01:43.1]} 28... Bf3 {[%clk 0:01:32.2]} 29. Qh4
{[%clk 0:01:34.2]} 29... g5 {[%clk 0:01:20.5]} 30. Bxf3 {[%clk 0:01:23.3]} 30...
Kh7 {[%clk 0:01:01.9]} 31. Qg4 {[%clk 0:01:12.1]} 31... f5 {[%clk 0:01:01.9]}
32. Qg2 {[%clk 0:01:09.3]} 32... Ng3+ {[%clk 0:01:01.5]} 33. Kh2 {[%clk
0:01:05.3]} 33... Nf1+ {[%clk 0:00:56.4]} 34. Kh1 {[%clk 0:01:05.4]} 34... Ng3+
{[%clk 0:00:54.6]} 35. Kh2 {[%clk 0:01:00.3]} 35... g4 {[%clk 0:00:45.3]} 36.
hxg4 {[%clk 0:00:59.4]} 36... fxg4 {[%clk 0:00:46.2]} 37. Be4+ {[%clk
0:00:59.3]} 37... Nxe4+ {[%clk 0:00:46.3]} 38. Kh1 {[%clk 0:00:53.7]} 38... Ng3+
{[%clk 0:00:46.3]} 39. Kh2 {[%clk 0:00:54.1]} 39... Qf5 {[%clk 0:00:45.6]} 40.
Bd4 {[%clk 0:00:49.9]} 40... Qh5+ {[%clk 0:00:44.8]} 0-1

[Event "Late-Titled-Tuesday-Blitz-December-26-2023"]
[Site "Chess.com"]
[Date "2023.12.26"]
[Round "5"]
[White "tripledes"]
[Black "giomar27"]
[Result "1-0"]
[WhiteElo "2227"]
[BlackElo "2389"]
[TimeControl "180+1"]
[EndTime "14:54:00 PST"]
[Termination "tripledes won by resignation"]

1. e4 {[%clk 0:03:00.9]} 1... e5 {[%clk 0:02:58.2]} 2. Nf3 {[%clk 0:02:57.9]}
2... Nc6 {[%clk 0:02:58.6]} 3. Bb5 {[%clk 0:02:57.7]} 3... a6 {[%clk 0:02:58.6]}
4. Bxc6 {[%clk 0:02:58.1]} 4... dxc6 {[%clk 0:02:58.4]} 5. O-O {[%clk
0:02:58.5]} 5... Qf6 {[%clk 0:02:58.2]} 6. d4 {[%clk 0:02:56.6]} 6... exd4
{[%clk 0:02:58.2]} 7. Bg5 {[%clk 0:02:55.2]} 7... Qd6 {[%clk 0:02:58.1]} 8. Qxd4
{[%clk 0:02:50.8]} 8... Qxd4 {[%clk 0:02:56.1]} 9. Nxd4 {[%clk 0:02:51.7]} 9...
f6 {[%clk 0:02:52.5]} 10. Bf4 {[%clk 0:02:50.5]} 10... Bc5 {[%clk 0:02:39.7]}
11. Nb3 {[%clk 0:02:36.4]} 11... Bb6 {[%clk 0:02:39.4]} 12. c4 {[%clk
0:02:31.3]} 12... c5 {[%clk 0:02:29.5]} 13. Be3 {[%clk 0:02:09.2]} 13... Be6
{[%clk 0:02:27.7]} 14. Na3 {[%clk 0:02:08.7]} 14... O-O-O {[%clk 0:02:18.7]} 15.
Rad1 {[%clk 0:02:07.7]} 15... Ne7 {[%clk 0:02:18.1]} 16. Bxc5 {[%clk 0:02:05.3]}
16... Bxc5 {[%clk 0:02:11]} 17. Nxc5 {[%clk 0:02:06.2]} 17... Bf7 {[%clk
0:02:11.1]} 18. b3 {[%clk 0:02:03.1]} 18... Nc6 {[%clk 0:02:10.4]} 19. Nc2
{[%clk 0:02:01.3]} 19... Rhe8 {[%clk 0:02:00.6]} 20. f3 {[%clk 0:02:00.7]} 20...
b5 {[%clk 0:01:50.9]} 21. cxb5 {[%clk 0:01:52.1]} 21... axb5 {[%clk 0:01:50.9]}
22. Kf2 {[%clk 0:01:34.8]} 22... Ne5 {[%clk 0:01:47]} 23. Ne3 {[%clk 0:01:17.6]}
23... c6 {[%clk 0:01:37.5]} 24. Rxd8+ {[%clk 0:00:55.9]} 24... Rxd8 {[%clk
0:01:34]} 25. Rd1 {[%clk 0:00:56.5]} 25... Rxd1 {[%clk 0:01:30.8]} 26. Nxd1
{[%clk 0:00:57.4]} 26... Kc7 {[%clk 0:01:30.6]} 27. Ke3 {[%clk 0:00:57.4]} 27...
Kb6 {[%clk 0:01:30.3]} 28. Nd3 {[%clk 0:00:57.7]} 28... Nd7 {[%clk 0:01:29]} 29.
f4 {[%clk 0:00:51.3]} 29... c5 {[%clk 0:01:28.9]} 30. N3b2 {[%clk 0:00:34]}
30... c4 {[%clk 0:01:24.2]} 31. bxc4 {[%clk 0:00:34]} 31... bxc4 {[%clk
0:01:25.1]} 32. Kd4 {[%clk 0:00:32.6]} 32... Kb5 {[%clk 0:01:25.4]} 33. Nc3+
{[%clk 0:00:19.4]} 33... Kb4 {[%clk 0:01:23.9]} 34. Nd5+ {[%clk 0:00:20]} 34...
Bxd5 {[%clk 0:01:12.1]} 35. exd5 {[%clk 0:00:20.9]} 35... Nc5 {[%clk 0:01:07.3]}
36. Nxc4 {[%clk 0:00:20.4]} 36... Nd7 {[%clk 0:01:03]} 37. d6 {[%clk 0:00:20]}
37... Kb5 {[%clk 0:01:02.6]} 38. Kd5 {[%clk 0:00:20.2]} 38... f5 {[%clk
0:01:02.5]} 39. Ne5 {[%clk 0:00:19.4]} 39... Nf6+ {[%clk 0:01:02.6]} 40. Ke6
{[%clk 0:00:19.3]} 40... g6 {[%clk 0:01:00.1]} 41. Kxf6 {[%clk 0:00:18.9]} 1-0